fUST/lending_fUST_20250224
["ID","MTS","AMOUNT","RATE_DAILY","PERIOD"]
[354221847,1740352243508,-500.0,0.00013698,2]
[354221849,1740352243517,-500.0,0.00013698,2]
[354221851,1740352243526,-500.0,0.00013698,2]
[354221853,1740352243536,-500.0,0.00013698,2]
[354221855,1740352243546,-500.0,0.00013698,2]
[354221857,1740352243556,-500.0,0.00013698,2]
[354221859,1740352243565,-500.0,0.00013698,2]
[354221861,1740352243574,-500.0,0.00013698,2]
[354221863,1740352243584,-500.0,0.00013698,2]
[354221865,1740352243593,-500.0,0.00013698,2]
[354221867,1740352243602,-500.0,0.00013698,2]
[354221869,1740352243612,-500.0,0.00013698,2]
[354221871,1740352243621,-500.0,0.00013698,2]
[354221873,1740352243630,-500.0,0.00013698,2]
[354221875,1740352243639,-500.0,0.00013698,2]
[354221877,1740352243649,-500.0,0.00013698,2]
[354221879,1740352243658,-500.0,0.00013698,2]
[354221881,1740352243667,-500.0,0.00013698,2]
[354221883,1740352243677,-500.0,0.00013698,2]
[354221885,1740352243686,-500.0,0.00013698,2]
[354221887,1740352243695,-500.0,0.00013698,2]
[354221889,1740352243704,-500.0,0.00013698,2]
[354221891,1740352243713,-500.0,0.00013698,2]
[354221893,1740352243723,-391.442079,0.00013698,2]
[354221895,1740352243732,-500.0,0.00013698,2]
[354221897,1740352243741,-180.14438665,0.00013698,2]
[354221899,1740352243750,-500.0,0.00013698,2]
[354221901,1740352243759,-500.0,0.00013698,2]
[354221903,1740352243768,-500.0,0.00013698,2]
[354221905,1740352243778,-500.0,0.00013698,2]
[354221907,1740352243787,-178.43911417,0.00013698,2]
[354221910,1740352243800,-321.56088583,0.00013698,2]
[354221912,1740352243809,-1484.55,0.00013698,2]
[354221914,1740352243818,-193.26635515,0.00013698,2]
[354221916,1740352243829,-500.0,0.00013698,2]
[354221918,1740352243838,-500.0,0.00013698,2]
[354221920,1740352243847,-500.0,0.00013698,2]
[354221922,1740352243856,-500.0,0.00013698,2]
[354221924,1740352243866,-500.0,0.00013698,2]
[354221926,1740352243875,-498.747569,0.00013699,2]
[354221928,1740352243884,-206.158765,0.00013699,2]
[354221930,1740352243893,-500.0,0.00013779,2]
[354221931,1740352243903,-547.44,0.00013779,2]
[354221933,1740352243912,-547.44,0.00013779,2]
[354221935,1740352243921,-500.0,0.0001378,2]
[354221937,1740352243931,-500.0,0.0001378,2]
[354221939,1740352243940,-500.0,0.0001378,2]
[354221941,1740352243950,-507.17186053,0.0001378,2]
[354221943,1740352243959,-500.0,0.0001378,2]
[354221945,1740352243968,-500.0,0.0001378,2]
[354221947,1740352243977,-500.0,0.0001378,2]
[354221949,1740352243986,-500.0,0.0001378,2]
[354221951,1740352243996,-500.0,0.0001378,2]
[354221953,1740352244005,-500.0,0.0001378,2]
[354221955,1740352244014,-500.0,0.0001378,2]
[354221957,1740352244023,-500.0,0.0001378,2]
[354221959,1740352244033,-600.92,0.0001378,2]
[354221961,1740352244042,-500.0,0.0001378,2]
[354221963,1740352244051,-501.38521472,0.0001378,2]
[354221965,1740352244060,-590.66,0.0001378,2]
[354221967,1740352244069,-500.0,0.0001378,2]
[354221969,1740352244078,-500.0,0.0001378,2]
[354221971,1740352244088,-500.0,0.0001378,2]
[354221973,1740352244097,-500.0,0.0001378,2]
[354221975,1740352244106,-500.0,0.0001378,2]
[354221977,1740352244115,-500.0,0.0001378,2]
[354221979,1740352244125,-500.0,0.0001378,2]
[354221981,1740352244134,-500.0,0.0001378,2]
[354221983,1740352244143,-500.0,0.0001378,2]
[354221985,1740352244152,-500.0,0.0001378,2]
[354221987,1740352244161,-500.0,0.0001378,2]
[354221989,1740352244171,-500.0,0.0001378,2]
[354221991,1740352244180,-500.0,0.0001378,2]
[354221993,1740352244189,-500.0,0.0001378,2]
[354221995,1740352244199,-500.0,0.0001378,2]
[354221997,1740352244208,-500.0,0.0001378,2]
[354221999,1740352244217,-500.0,0.0001378,2]
[354222001,1740352244226,-500.0,0.0001378,2]
[354222003,1740352244235,-500.0,0.0001378,2]
[354222005,1740352244244,-500.0,0.0001378,2]
[354222007,1740352244254,-500.0,0.0001378,2]
[354222009,1740352244263,-500.0,0.0001378,2]
[354222011,1740352244272,-500.0,0.0001378,2]
[354222013,1740352244281,-500.0,0.0001378,2]
[354222015,1740352244290,-500.0,0.0001378,2]
[354222017,1740352244299,-500.0,0.0001378,2]
[354222019,1740352244308,-500.0,0.0001378,2]
[354222021,1740352244317,-500.0,0.0001378,2]
[354222023,1740352244326,-754.54,0.0001378,2]
[354222025,1740352244335,-3453.46,0.0001378,2]
[354222026,1740352244344,-500.0,0.0001378,2]
[354222028,1740352244353,-500.0,0.0001378,2]
[354222030,1740352244362,-500.0,0.0001378,2]
[354222032,1740352244375,-1372.8,0.0001378,2]
[354222034,1740352244384,-500.0,0.0001378,2]
[354222036,1740352244393,-488.70694811,0.0001378,2]
[354222038,1740352244402,-500.0,0.0001378,2]
[354222041,1740352244412,-500.0,0.0001378,2]
[354222042,1740352244421,-741.85,0.0001378,2]
[354222044,1740352244430,-500.0,0.0001378,2]
[354222046,1740352244439,-500.0,0.0001378,2]
[354222048,1740352244448,-500.0,0.0001378,2]
[354222050,1740352244457,-500.0,0.0001378,2]
[354222052,1740352244467,-500.0,0.0001378,2]
[354222055,1740352244477,-1484.55,0.0001378,2]
[354222057,1740352244486,-370.29,0.0001378,2]
[354222059,1740352244496,-500.0,0.00013861,2]
[354222061,1740352244505,-207.64634406,0.00013862,2]
[354222063,1740352244514,-500.0,0.00013862,2]
[354222065,1740352244523,-547.44,0.00013862,2]
[354222067,1740352244533,-500.0,0.00013863,2]
[354222069,1740352244542,-500.0,0.00013863,2]
[354222071,1740352244551,-500.0,0.00013863,2]
[354222073,1740352244560,-500.0,0.00013863,2]
[354222075,1740352244570,-500.0,0.00013863,2]
[354222077,1740352244579,-500.0,0.00013863,2]
[354222079,1740352244588,-500.0,0.00013863,2]
[354222081,1740352244597,-500.0,0.00013863,2]
[354222083,1740352244606,-500.0,0.00013863,2]
[354222085,1740352244615,-500.0,0.00013863,2]
[354222086,1740352244624,-500.0,0.00013863,2]
[354222087,1740352244633,-500.0,0.00013863,2]
[354222088,1740352244642,-500.0,0.00013863,2]
[354222089,1740352244651,-500.0,0.00013863,2]
[354222090,1740352244660,-500.0,0.00013863,2]
[354222091,1740352244669,-500.0,0.00013863,2]
[354222092,1740352244678,-478.09,0.00013863,2]
[354222093,1740352244688,-500.0,0.00013863,2]
[354222094,1740352244697,-506.74443551,0.00013863,2]
[354222095,1740352244706,-500.0,0.00013863,2]
[354222096,1740352244715,-500.0,0.00013863,2]
[354222097,1740352244812,-500.0,0.00013863,2]
[354222098,1740352244822,-754.54,0.00013863,2]
[354222099,1740352244831,-3453.46,0.00013863,2]
[354222100,1740352244841,-500.0,0.00013863,2]
[354222101,1740352244850,-1372.8,0.00013863,2]
[354222102,1740352244859,-500.0,0.00013863,2]
[354222103,1740352244869,-500.0,0.00013863,2]
[354222104,1740352244879,-500.0,0.00013863,2]
[354222106,1740352244890,-741.85,0.00013863,2]
[354222107,1740352244899,-500.0,0.00013863,2]
[354222109,1740352244908,-500.0,0.00013863,2]
[354222110,1740352244917,-500.0,0.00013863,2]
[354222113,1740352244927,-500.0,0.00013863,2]
[354222114,1740352244936,-1484.55,0.00013863,2]
[354222116,1740352244945,-500.0,0.00013883,2]
[354222118,1740352244954,-500.0,0.00013942,2]
[354222120,1740352244963,-500.0,0.00013942,2]
[354222123,1740352244974,-500.0,0.00013942,2]
[354222124,1740352244984,-500.0,0.00013942,2]
[354222127,1740352244993,-500.0,0.00013942,2]
[354222128,1740352245003,-409.7407013,0.00013942,2]
[354222130,1740352245013,-389.59129119,0.00013942,2]
[354222132,1740352245022,-500.0,0.00013942,2]
[354222134,1740352245031,-551.30853695,0.00013942,2]
[354222136,1740352245041,-500.0,0.00013942,2]
[354222138,1740352245050,-500.0,0.00013942,2]
[354222140,1740352245060,-500.0,0.00013942,2]
[354222142,1740352245069,-500.0,0.00013942,2]
[354222144,1740352245078,-500.0,0.00013942,2]
[354222146,1740352245087,-500.0,0.00013942,2]
[354222148,1740352245097,-500.0,0.00013942,2]
[354222150,1740352245107,-547.44,0.00013943,2]
[354222152,1740352245116,-500.0,0.00013944,2]
[354222154,1740352245126,-500.0,0.00013945,2]
[354222156,1740352245136,-500.0,0.00013945,2]
[354222158,1740352245145,-500.0,0.00013945,2]
[354222160,1740352245155,-500.0,0.00013945,2]
[354222162,1740352245164,-501.47185371,0.00013945,2]
[354222164,1740352245174,-500.0,0.00013945,2]
[354222166,1740352245183,-277.12337191,0.00013945,2]
[354222168,1740352245193,-500.0,0.00013945,2]
[354222170,1740352245202,-500.0,0.00013945,2]
[354222172,1740352245211,-501.15554577,0.00013945,2]
[354222174,1740352245222,-500.0,0.00013945,2]
[354222176,1740352245231,-500.0,0.00013945,2]
[354222178,1740352245241,-500.0,0.00013945,2]
[354222180,1740352245250,-447.96602548,0.00013945,2]
[354222182,1740352245260,-500.0,0.00013945,2]
[354222184,1740352245269,-500.0,0.00013945,2]
[354222186,1740352245279,-754.54,0.00013945,2]
[354222188,1740352245288,-3453.46,0.00013945,2]
[354222190,1740352245298,-500.0,0.00013945,2]
[354222192,1740352245308,-1372.8,0.00013945,2]
[354222194,1740352245317,-500.0,0.00013945,2]
[354222196,1740352245327,-500.0,0.00013945,2]
[354222198,1740352245335,-500.0,0.00013945,2]
[354222200,1740352245345,-741.85,0.00013945,2]
[354222202,1740352245354,-316.99,0.00013945,2]
[354222204,1740352245363,-500.0,0.00013945,2]
[354222206,1740352245376,-500.0,0.00013945,2]
[354222208,1740352245385,-500.0,0.00013945,2]
[354222210,1740352245395,-1484.55,0.00013945,2]
[354222212,1740352245405,-420.0,0.0001395,2]
[354222214,1740352245415,-154.666,0.0001399,2]
[354222216,1740352245426,-547.44,0.00014025,2]
[354222218,1740352245435,-500.0,0.00014026,2]
[354222220,1740352245447,-500.0,0.00014027,2]
[354222222,1740352245456,-500.0,0.00014027,2]
[354222224,1740352245465,-500.0,0.00014027,2]
[354222226,1740352245474,-500.0,0.00014027,2]
[354222228,1740352245483,-395.51484768,0.00014027,2]
[354222230,1740352245492,-500.0,0.00014027,2]
[354222232,1740352245501,-500.0,0.00014027,2]
[354222234,1740352245510,-500.0,0.00014027,2]
[354222236,1740352245520,-754.54,0.00014027,2]
[354222238,1740352245529,-3453.46,0.00014027,2]
[354222240,1740352245539,-500.0,0.00014027,2]
[354222242,1740352245548,-1372.8,0.00014027,2]
[354222244,1740352245557,-500.0,0.00014027,2]
[354222246,1740352245567,-500.0,0.00014027,2]
[354222248,1740352245576,-500.0,0.00014027,2]
[354222250,1740352245585,-741.85,0.00014027,2]
[354222252,1740352245594,-500.0,0.00014027,2]
[354222254,1740352245603,-500.0,0.00014027,2]
[354222256,1740352245612,-500.0,0.00014027,2]
[354222258,1740352245621,-1484.55,0.00014027,2]
[354222260,1740352245630,-396.0,0.00014088,2]
[354222262,1740352245639,-500.0,0.00014108,2]
[354222264,1740352245648,-547.44,0.00014108,2]
[354222266,1740352245657,-445.90102795,0.00014109,2]
[354222268,1740352245666,-500.0,0.00014109,2]
[354222270,1740352245675,-500.0,0.00014109,2]
[354222272,1740352245684,-500.0,0.00014109,2]
[354222274,1740352245694,-500.0,0.00014109,2]
[354222276,1740352245703,-500.0,0.00014109,2]
[354222278,1740352245712,-500.0,0.00014109,2]
[354222280,1740352245722,-754.54,0.00014109,2]
[354222282,1740352245731,-3453.46,0.00014109,2]
[354222284,1740352245741,-331.73880025,0.00014109,2]
[354222286,1740352245750,-1372.8,0.00014109,2]
[354222287,1740352245759,-500.0,0.00014109,2]
[354222288,1740352245768,-500.0,0.00014109,2]
[354222289,1740352245777,-500.0,0.00014109,2]
[354222290,1740352245786,-741.85,0.00014109,2]
[354222291,1740352245795,-500.0,0.00014109,2]
[354222292,1740352245804,-500.0,0.00014109,2]
[354222293,1740352245813,-500.0,0.00014109,2]
[354222294,1740352245823,-1484.55,0.00014109,2]
[354222295,1740352245833,-619.61201597,0.0001419,2]
[354222296,1740352245842,-547.44,0.0001419,2]
[354222297,1740352245850,-500.0,0.00014191,2]
[354222298,1740352245859,-500.0,0.00014191,2]
[354222299,1740352245868,-500.0,0.00014191,2]
[354222300,1740352245877,-151.0,0.00014191,2]
[354222301,1740352245887,-500.0,0.00014191,2]
[354222302,1740352245896,-151.0,0.00014191,2]
[354222303,1740352245905,-209.858819,0.00014191,2]
[354222304,1740352245914,-151.0,0.00014191,2]
[354222305,1740352245923,-500.0,0.00014191,2]
[354222306,1740352245932,-500.0,0.00014191,2]
[354222307,1740352245941,-754.54,0.00014191,2]
[354222308,1740352245950,-3453.46,0.00014191,2]
[354222309,1740352245959,-1372.8,0.00014191,2]
[354222310,1740352245968,-500.0,0.00014191,2]
[354222311,1740352245977,-500.0,0.00014191,2]
[354222312,1740352245987,-500.0,0.00014191,2]
[354222313,1740352245996,-741.85,0.00014191,2]
[354222314,1740352246005,-151.0,0.00014191,2]
[354222315,1740352246015,-500.0,0.00014191,2]
[354222316,1740352246024,-151.0,0.00014191,2]
[354222317,1740352246033,-500.0,0.00014191,2]
[354222318,1740352246043,-500.0,0.00014191,2]
[354222319,1740352246053,-1484.55,0.00014191,2]
[354222320,1740352246062,-300.0,0.000142,5]
[354222321,1740352246071,-1000.0,0.00014221,2]
[354222322,1740352246080,-355.3336689,0.00014236,2]
[354222323,1740352246089,-547.44,0.00014272,2]
[354222324,1740352246098,-500.0,0.00014273,2]
[354222325,1740352246107,-151.0,0.00014273,2]
[354222326,1740352246117,-151.0,0.00014273,2]
[354222328,1740352246126,-500.0,0.00014273,2]
[354222330,1740352246135,-247.09042229,0.00014273,2]
[354222331,1740352246144,-194.148217,0.00014273,2]
[354222333,1740352246153,-194.148217,0.00014273,2]
[354222335,1740352246163,-151.0,0.00014273,2]
[354222337,1740352246172,-500.0,0.00014273,2]
[354222338,1740352246181,-151.0,0.00014273,2]
[354222340,1740352246190,-151.0,0.00014273,2]
[354222342,1740352246199,-500.0,0.00014273,2]
[354222344,1740352246210,-500.0,0.00014273,2]
[354222346,1740352246220,-754.54,0.00014273,2]
[354222348,1740352246230,-3453.46,0.00014273,2]
[354222350,1740352246239,-1372.8,0.00014273,2]
[354222352,1740352246248,-500.0,0.00014273,2]
[354222354,1740352246258,-180.31334806,0.00014273,2]
[354222356,1740352246267,-563.87,0.00014273,2]
[354222358,1740352246276,-741.85,0.00014273,2]
[354222360,1740352246285,-500.0,0.00014273,2]
[354222362,1740352246294,-500.0,0.00014273,2]
[354222364,1740352246304,-500.0,0.00014273,2]
[354222366,1740352246313,-1484.55,0.00014273,2]
[354222368,1740352246322,-500.0,0.00014285,2]
[354222370,1740352246331,-2200.0,0.00014342,2]
[354222372,1740352246340,-153.177548,0.00014355,2]
[354222373,1740352246349,-151.0,0.00014355,2]
[354222375,1740352246359,-547.44,0.00014355,2]
[354222377,1740352246372,-500.0,0.00014356,2]
[354222379,1740352246381,-151.0,0.00014356,2]
[354222381,1740352246390,-151.0,0.00014356,2]
[354222383,1740352246399,-301.714896,0.00014356,2]
[354222385,1740352246409,-204.055066,0.00014356,2]
[354222387,1740352246419,-500.0,0.00014356,2]
[354222389,1740352246428,-500.0,0.00014356,2]
[354222391,1740352246437,-500.0,0.00014356,2]
[354222393,1740352246448,-500.0,0.00014356,2]
[354222395,1740352246458,-754.54,0.00014356,2]
[354222397,1740352246467,-3453.46,0.00014356,2]
[354222399,1740352246476,-1372.8,0.00014356,2]
[354222401,1740352246485,-500.0,0.00014356,2]
[354222403,1740352246495,-741.85,0.00014356,2]
[354222405,1740352246504,-500.0,0.00014356,2]
[354222407,1740352246514,-500.0,0.00014356,2]
[354222409,1740352246523,-500.0,0.00014356,2]
[354222411,1740352246533,-1484.55,0.00014356,2]
[354222413,1740352246542,-500.0,0.00014438,2]
[354222415,1740352246551,-500.0,0.00014438,2]
[354222417,1740352246560,-500.0,0.00014438,2]
[354222419,1740352246569,-500.0,0.00014438,2]
[354222421,1740352246578,-500.0,0.00014438,2]
[354222423,1740352246587,-754.54,0.00014438,2]
[354222425,1740352246597,-3453.46,0.00014438,2]
[354222427,1740352246606,-1372.8,0.00014438,2]
[354222429,1740352246616,-500.0,0.00014438,2]
[354222431,1740352246625,-741.85,0.00014438,2]
[354222433,1740352246634,-500.0,0.00014438,2]
[354222435,1740352246644,-500.0,0.00014438,2]
[354222437,1740352246654,-500.0,0.00014438,2]
[354222439,1740352246663,-1484.55,0.00014438,2]
[354222441,1740352246672,-1361.48,0.000145,2]
[354222443,1740352246681,-151.0,0.000145,2]
[354222445,1740352246690,-547.44,0.00014519,2]
[354222447,1740352246700,-500.0,0.0001452,2]
[354222449,1740352246709,-500.0,0.0001452,2]
[354222451,1740352246718,-500.0,0.0001452,2]
[354222453,1740352246728,-500.0,0.0001452,2]
[354222455,1740352246737,-500.0,0.0001452,2]
[354222457,1740352246747,-754.54,0.0001452,2]
[354222459,1740352246756,-3453.46,0.0001452,2]
[354222461,1740352246765,-1372.8,0.0001452,2]
[354222463,1740352246774,-500.0,0.0001452,2]
[354222465,1740352246783,-741.85,0.0001452,2]
[354222467,1740352246793,-500.0,0.0001452,2]
[354222469,1740352246802,-500.0,0.0001452,2]
[354222471,1740352246812,-500.0,0.0001452,2]
[354222473,1740352246821,-1484.55,0.0001452,2]
[354222475,1740352246830,-323.0,0.0001454,2]
[354222477,1740352246839,-547.44,0.00014601,2]
[354222479,1740352246849,-547.44,0.00014601,2]
[354222481,1740352246858,-547.44,0.00014601,2]
[354222491,1740352246943,-547.44,0.00014601,2]
[354222493,1740352246955,-547.5,0.00014601,2]
[354222495,1740352246965,-200.33004,0.00014602,2]
[354222497,1740352246975,-500.0,0.00014602,2]
[354222499,1740352246984,-500.0,0.00014602,2]
[354222501,1740352246994,-500.0,0.00014602,2]
[354222503,1740352247003,-255.89492,0.00014602,2]
[354222505,1740352247013,-500.0,0.00014602,2]
[354222507,1740352247022,-500.0,0.00014602,2]
[354222509,1740352247031,-754.54,0.00014602,2]
[354222511,1740352247040,-3453.46,0.00014602,2]
[354222513,1740352247049,-1372.8,0.00014602,2]
[354222515,1740352247059,-500.0,0.00014602,2]
[354222517,1740352247068,-741.85,0.00014602,2]
[354222519,1740352247077,-151.0,0.00014602,2]
[354222520,1740352247087,-500.0,0.00014602,2]
[354222521,1740352247096,-151.0,0.00014602,2]
[354222522,1740352247105,-500.0,0.00014602,2]
[354222523,1740352247114,-500.0,0.00014602,2]
[354222524,1740352247124,-1484.55,0.00014602,2]
[354222525,1740352247133,-478.944488,0.00014684,2]
[354222526,1740352247143,-478.944488,0.00014684,2]
[354222527,1740352247152,-500.0,0.00014684,2]
[354222529,1740352247161,-500.0,0.00014684,2]
[354222531,1740352247171,-151.0,0.00014684,2]
[354222533,1740352247180,-592.76293726,0.00014684,2]
[354222535,1740352247190,-151.0,0.00014684,2]
[354222537,1740352247199,-500.0,0.00014684,2]
[354222538,1740352247208,-500.0,0.00014684,2]
[354222541,1740352247219,-754.54,0.00014684,2]
[354222543,1740352247228,-3453.46,0.00014684,2]
[354222544,1740352247238,-1372.8,0.00014684,2]
[354222546,1740352247247,-500.0,0.00014684,2]
[354222549,1740352247257,-741.85,0.00014684,2]
[354222550,1740352247266,-500.0,0.00014684,2]
[354222553,1740352247276,-500.0,0.00014684,2]
[354222555,1740352247285,-500.0,0.00014684,2]
[354222557,1740352247294,-1484.55,0.00014684,2]
[354222558,1740352247303,-155.6390362,0.00014746,2]
[354222561,1740352247313,-151.0,0.00014766,2]
[354222562,1740352247322,-151.0,0.00014766,2]
[354222564,1740352247331,-194.148217,0.00014766,2]
[354222566,1740352247340,-194.148217,0.00014766,2]
[354222568,1740352247349,-151.0,0.00014766,2]
[354222570,1740352247358,-151.0,0.00014766,2]
[354222572,1740352247370,-151.0,0.00014766,2]
[354222574,1740352247379,-500.0,0.00014767,2]
[354222576,1740352247389,-595.45,0.00014767,2]
[354222578,1740352247397,-500.0,0.00014767,2]
[354222580,1740352247406,-500.0,0.00014767,2]
[354222582,1740352247418,-754.54,0.00014767,2]
[354222584,1740352247427,-3453.46,0.00014767,2]
[354222586,1740352247436,-1372.8,0.00014767,2]
[354222588,1740352247447,-440.19490873,0.00014767,2]
[354222590,1740352247457,-741.85,0.00014767,2]
[354222592,1740352247466,-500.0,0.00014767,2]
[354222595,1740352247478,-500.0,0.00014767,2]
[354222597,1740352247487,-500.0,0.00014767,2]
[354222598,1740352247497,-1484.55,0.00014767,2]
[354222601,1740352247507,-8577.05538184,0.000148,2]
[354222603,1740352247520,-110867.88959564,0.0001484,2]
[354222605,1740352247530,-151.0,0.00014847,2]
[354222607,1740352247540,-500.0,0.00014849,2]
[354222609,1740352247549,-151.0,0.00014849,2]
[354222611,1740352247558,-151.0,0.00014849,2]
[354222613,1740352247567,-345.78703384,0.00014849,2]
[354222615,1740352247577,-312.37848393,0.00014849,2]
[354222617,1740352247586,-754.54,0.00014849,2]
[354222619,1740352247596,-3453.46,0.00014849,2]
[354222621,1740352247606,-1372.8,0.00014849,2]
[354222623,1740352247615,-741.85,0.00014849,2]
[354222625,1740352247625,-500.0,0.00014849,2]
[354222627,1740352247634,-500.0,0.00014849,2]
[354222629,1740352247643,-500.0,0.00014849,2]
[354222631,1740352247653,-1484.55,0.00014849,2]
[354222633,1740352247663,-500.0,0.00014873,2]
[354222635,1740352247672,-1183.48797708,0.00014877,2]
[354222637,1740352247681,-1072.13192273,0.0001489,2]
[354222639,1740352247690,-299.73652309,0.0001489,2]
[354222641,1740352247699,-500.0,0.0001489,2]
[354222643,1740352247709,-150.23,0.0001489,2]
[354222645,1740352247718,-299.75846755,0.0001489,2]
[354222647,1740352247727,-150.23,0.0001489,2]
[354222649,1740352247736,-216.18437774,0.0001489,2]
[354222651,1740352247745,-500.0,0.0001489,2]
[354222653,1740352247754,-500.0,0.0001489,2]
[354222655,1740352247763,-150.23,0.0001489,2]
[354222657,1740352247773,-188.21378813,0.0001489,2]
[354222659,1740352247783,-815.0,0.0001489,2]
[354222661,1740352247792,-150.23,0.0001489,2]
[354222663,1740352247802,-500.0,0.0001489,2]
[354222665,1740352247811,-150.23,0.0001489,2]
[354222667,1740352247820,-150.23,0.0001489,2]
[354222669,1740352247829,-150.23,0.0001489,2]
[354222671,1740352247838,-500.0,0.00014899,2]
[354222673,1740352247847,-379.98996209,0.00014899,2]
[354222675,1740352247856,-151.0,0.00014899,2]
[354222677,1740352247865,-14173.56943141,0.000149,5]
[354222679,1740352247874,-1366.85225239,0.000149,5]
[354222681,1740352247883,-175.0624,0.000149,2]
[354222683,1740352247893,-175.0624,0.000149,2]
[354222685,1740352247902,-151.034928,0.000149,2]
[354222687,1740352247911,-151.0,0.000149,2]
[354222689,1740352247920,-151.0,0.000149,2]
[354222691,1740352247929,-478.944488,0.000149,2]
[354222693,1740352247939,-478.944488,0.000149,2]
[354222695,1740352247948,-2000.0,0.000149,2]
[354222697,1740352247957,-151.0,0.000149,2]
[354222699,1740352247966,-151.0,0.000149,2]
[354222701,1740352247975,-151.0,0.000149,2]
[354222703,1740352247985,-151.0,0.000149,2]
[354222705,1740352247994,-151.0,0.000149,2]
[354222707,1740352248003,-194.148217,0.000149,2]
[354222709,1740352248012,-194.148217,0.000149,2]
[354222711,1740352248021,-151.0,0.000149,2]
[354222713,1740352248030,-151.0,0.000149,2]
[354222715,1740352248040,-151.0,0.000149,2]
[354222717,1740352248049,-137995.28009385,0.000149,2]
[354222726,1740352248120,-584.3672,0.000149,2]
[354222731,1740352248162,-500.0,0.00013698,2]
[354222733,1740352248171,-765.96891735,0.000149,2]
[354223517,1740352665141,193.353994,9.041e-05,2]
[354223525,1740353313707,1119.16123286,0.00018141,90]
[354223570,1740353432075,-500.0,0.00012664,2]
[354223571,1740353432085,-300.0,0.00012778,2]
[354223572,1740353432095,-24900.0,0.0001278,2]
[354223573,1740353432104,-169.63313455,0.00013473,2]
[354223574,1740353432114,-162.11974594,0.00013473,2]
[354223576,1740353432123,-160.6551167,0.00013498,2]
[354223578,1740353432132,-176786.76517105,0.000135,2]
[354223580,1740353432142,-175.47616102,0.00013598,2]
[354223582,1740353432151,-500.0,0.00013673,2]
[354223584,1740353432160,-500.0,0.00013673,2]
[354223585,1740353432169,-500.51061943,0.00013673,2]
[354223587,1740353432179,-500.0,0.00013697,2]
[354223589,1740353432189,-249.9272696,0.00013697,2]
[354223590,1740353432198,-500.0,0.00013697,2]
[354223591,1740353432207,-500.0,0.00013697,2]
[354223592,1740353432216,-302.01310379,0.00013697,2]
[354223593,1740353432225,-500.0,0.00013698,2]
[354223594,1740353432235,-500.0,0.00013698,2]
[354223595,1740353432244,-500.0,0.00013698,2]
[354223596,1740353432253,-500.0,0.00013698,2]
[354223597,1740353432263,-500.0,0.00013698,2]
[354223598,1740353432272,-500.98422258,0.00013698,2]
[354223599,1740353432281,-500.0,0.00013698,2]
[354223600,1740353432290,-500.0,0.00013698,2]
[354223601,1740353432299,-500.0,0.00013698,2]
[354223602,1740353432309,-500.0,0.00013698,2]
[354223603,1740353432318,-500.0,0.00013698,2]